fUSD/lending_fUSD_20260530
["ID","MTS","AMOUNT","RATE_DAILY","PERIOD"]
[423430532,1780111832000,-1061.77889029,0.00013699,2]
[423430551,1780111832000,-4175.0213386,0.00013699,2]
[423430529,1780111832000,-1061.77889029,0.00013699,2]
[423430538,1780111832000,-1061.77889029,0.00013699,2]
[423430512,1780111832000,-1061.77889029,0.00013699,2]
[423430499,1780111832000,-1061.77889029,0.00013699,2]
[423430505,1780111832000,-1061.77889029,0.00013699,2]
[423430511,1780111832000,-1061.77889029,0.00013699,2]
[423430501,1780111832000,-1061.77889029,0.00013699,2]
[423430509,1780111832000,-1061.77889029,0.00013699,2]
[423430515,1780111832000,-1061.77889029,0.00013699,2]
[423430503,1780111832000,-1061.77889029,0.00013699,2]
[423430497,1780111832000,-1061.77889029,0.00013699,2]
[423430514,1780111832000,-1061.77889029,0.00013699,2]
[423430516,1780111832000,-1061.77889029,0.00013699,2]
[423430517,1780111832000,-1061.77889029,0.00013699,2]
[423430513,1780111832000,-1061.77889029,0.00013699,2]
[423430521,1780111832000,-1061.77889029,0.00013699,2]
[423430520,1780111832000,-1061.77889029,0.00013699,2]
[423430526,1780111832000,-1061.77889029,0.00013699,2]
[423430528,1780111832000,-1061.77889029,0.00013699,2]
[423430530,1780111832000,-1061.77889029,0.00013699,2]
[423430518,1780111832000,-1061.77889029,0.00013699,2]
[423430524,1780111832000,-1061.77889029,0.00013699,2]
[423430525,1780111832000,-1061.77889029,0.00013699,2]
[423430523,1780111832000,-1061.77889029,0.00013699,2]
[423430522,1780111832000,-1061.77889029,0.00013699,2]
[423430519,1780111832000,-1061.77889029,0.00013699,2]
[423430527,1780111832000,-1061.77889029,0.00013699,2]
[423430579,1780111833000,-150.0,0.00013933,2]
[423430582,1780111833000,-166.66,0.00013973,2]
[423430589,1780111833000,-150.0,0.0001405,2]
[423430586,1780111833000,-1500.0,0.00014,2]
[423430585,1780111833000,-150.0,0.00013987,2]
[423430583,1780111833000,-150.0,0.00013974,2]
[423430588,1780111833000,-150.0,0.00014014,2]
[423430584,1780111833000,-150.0,0.00013987,2]
[423430595,1780111833000,-150.0,0.00014176,2]
[423430591,1780111833000,-150.0,0.00014055,2]
[423430593,1780111833000,-166.66,0.0001411,2]
[423430592,1780111833000,-150.0,0.00014095,2]
[423430601,1780111833000,-3638.0,0.00014225,2]
[423430597,1780111833000,-150.0,0.00014217,2]
[423430600,1780111833000,-1226.0,0.00014225,2]
[423430581,1780111833000,-699.67308704,0.00013971,7]
[423430594,1780111833000,-150.0,0.00014136,2]
[423430587,1780111833000,-265.79243738,0.00014,30]
[423430590,1780111833000,-1600.0,0.00014052,2]
[423430566,1780111833000,-4175.0213386,0.00013699,2]
[423430575,1780111833000,-160.60480835,0.0001386,2]
[423430602,1780111833000,-150.0,0.00014237,2]
[423430565,1780111833000,-4175.0213386,0.00013699,2]
[423430560,1780111833000,-4175.0213386,0.00013699,2]
[423430564,1780111833000,-4175.0213386,0.00013699,2]
[423430563,1780111833000,-4175.0213386,0.00013699,2]
[423430561,1780111833000,-4175.0213386,0.00013699,2]
[423430562,1780111833000,-4175.0213386,0.00013699,2]
[423430567,1780111833000,-4175.0213386,0.00013699,2]
[423430569,1780111833000,-150.0,0.00013737,2]
[423430568,1780111833000,-150.0,0.00013731,2]
[423430570,1780111833000,-150.0,0.00013737,2]
[423430572,1780111833000,-150.0,0.00013812,2]
[423430571,1780111833000,-150.0,0.00013771,2]
[423430577,1780111833000,-2000.0,0.00013887,2]
[423430578,1780111833000,-150.0,0.00013893,2]
[423430573,1780111833000,-166.66,0.00013836,2]
[423430576,1780111833000,-150.0,0.00013862,2]
[423430580,1780111833000,-1102.92,0.00013959,2]
[423430598,1780111833000,-906.077,0.00014225,2]
[423430574,1780111833000,-150.0,0.00013852,2]
[423430599,1780111833000,-525.0,0.00014225,2]
[423430617,1780111833000,-150.0,0.0001446,2]
[423430621,1780111833000,-150.0,0.000145,2]
[423430625,1780111833000,-500.0,0.00014525,2]
[423430628,1780111833000,-500.0,0.00014525,2]
[423430638,1780111833000,-150.0,0.00014743,2]
[423430627,1780111833000,-395.43329599,0.00014525,2]
[423430629,1780111833000,-307.25188787,0.00014525,2]
[423430630,1780111833000,-150.0,0.00014541,2]
[423430634,1780111833000,-150.0,0.00014662,2]
[423430632,1780111833000,-150.0,0.00014612,2]
[423430631,1780111833000,-150.0,0.00014581,2]
[423430637,1780111833000,-150.0,0.00014737,2]
[423430636,1780111833000,-150.0,0.00014737,2]
[423430633,1780111833000,-150.0,0.00014622,2]
[423430640,1780111833000,-159.08038625,0.00014788,2]
[423430639,1780111833000,-150.0,0.00014784,2]
[423430596,1780111833000,-1839.60337747,0.0001421,7]
[423430622,1780111833000,-150.0,0.00014525,2]
[423430641,1780111833000,-5.88442989,0.00014789,2]
[423430635,1780111833000,-150.0,0.00014703,2]
[423430623,1780111833000,-150.0,0.00014525,2]
[423430620,1780111833000,-699.67308707,0.00014489,7]
[423430603,1780111833000,-150.0,0.00014237,2]
[423430605,1780111833000,-150.0,0.00014237,2]
[423430606,1780111833000,-166.66,0.00014247,2]
[423430604,1780111833000,-150.0,0.00014237,2]
[423430614,1780111833000,-766.02070208,0.000144,2]
[423430610,1780111833000,-150.0,0.00014379,2]
[423430613,1780111833000,-157.67,0.00014391,2]
[423430609,1780111833000,-150.0,0.00014338,2]
[423430607,1780111833000,-150.0,0.00014257,2]
[423430611,1780111833000,-166.66,0.00014384,2]
[423430619,1780111833000,-150.0,0.00014487,2]
[423430618,1780111833000,-150.0,0.00014487,2]
[423430616,1780111833000,-150.0,0.00014424,2]
[423430626,1780111833000,-104.56670401,0.00014525,2]
[423430624,1780111833000,-209.03326579,0.00014525,2]
[423430612,1780111833000,-10468.10573176,0.0001439,2]
[423430608,1780111833000,-150.0,0.00014298,2]
[423430615,1780111833000,-150.0,0.00014419,2]
[423430681,1780111838000,-500.0,0.00014888,2]
[423430675,1780111838000,-500.0,0.00014888,2]
[423430673,1780111838000,-500.0,0.00014888,2]
[423430678,1780111838000,-500.0,0.00014888,2]
[423430672,1780111838000,-500.0,0.00014888,2]
[423430674,1780111838000,-500.0,0.00014888,2]
[423430677,1780111838000,-500.0,0.00014888,2]
[423430679,1780111838000,-500.0,0.00014888,2]
[423430680,1780111838000,-500.0,0.00014888,2]
[423430683,1780111838000,-500.0,0.00014888,2]
[423430692,1780111838000,-500.0,0.00014888,2]
[423430684,1780111838000,-500.0,0.00014888,2]
[423430687,1780111838000,-500.0,0.00014888,2]
[423430686,1780111838000,-500.0,0.00014888,2]
[423430685,1780111838000,-500.0,0.00014888,2]
[423430682,1780111838000,-500.0,0.00014888,2]
[423430688,1780111838000,-500.0,0.00014888,2]
[423430691,1780111838000,-500.0,0.00014888,2]
[423430690,1780111838000,-500.0,0.00014888,2]
[423430676,1780111838000,-500.0,0.00014888,2]
[423430689,1780111838000,-500.0,0.00014888,2]
[423430667,1780111838000,-500.0,0.00014888,2]
[423430652,1780111838000,-1192.40917496,0.00014799,2]
[423430670,1780111838000,-500.0,0.00014888,2]
[423430653,1780111838000,-154.61916634,0.00014799,2]
[423430647,1780111838000,-6066.0,0.00014225,2]
[423430694,1780111838000,-500.0,0.00014888,2]
[423430650,1780111838000,-5000.0,0.00014789,2]
[423430649,1780111838000,-2494.11557011,0.00014789,2]
[423430651,1780111838000,-150.0,0.00014799,2]
[423430654,1780111838000,-183.9432301,0.00014799,2]
[423430656,1780111838000,-800.0,0.000148,3]
[423430655,1780111838000,-180.0659939,0.00014799,2]
[423430662,1780111838000,-504.31099771,0.00014887,2]
[423430659,1780111838000,-183.94323008,0.0001485,2]
[423430657,1780111838000,-1210.71429061,0.000148,2]
[423430660,1780111838000,-180.06599389,0.0001485,2]
[423430665,1780111838000,-377.06035753,0.00014887,2]
[423430664,1780111838000,-500.0,0.00014887,2]
[423430658,1780111838000,-150.0,0.00014824,2]
[423430661,1780111838000,-150.0,0.00014865,2]
[423430663,1780111838000,-669.65,0.00014887,2]
[423430666,1780111838000,-500.0,0.00014887,2]
[423430668,1780111838000,-500.0,0.00014888,2]
[423430669,1780111838000,-500.0,0.00014888,2]
[423430671,1780111838000,-500.0,0.00014888,2]
[423430693,1780111838000,-500.0,0.00014888,2]
[423430696,1780111838000,-295.37631974,0.00014888,2]
[423430739,1780111838000,-323.3,0.00014888,2]
[423430722,1780111838000,-500.0,0.00014888,2]
[423430723,1780111838000,-500.0,0.00014888,2]
[423430733,1780111838000,-500.0,0.00014888,2]
[423430731,1780111838000,-500.0,0.00014888,2]
[423430724,1780111838000,-500.0,0.00014888,2]
[423430727,1780111838000,-500.0,0.00014888,2]
[423430729,1780111838000,-500.0,0.00014888,2]
[423430737,1780111838000,-500.0,0.00014888,2]
[423430735,1780111838000,-497.78987791,0.00014888,2]
[423430742,1780111838000,-500.0,0.00014888,2]
[423430743,1780111838000,-1044.86,0.00014888,2]
[423430744,1780111838000,-1044.86,0.00014888,2]
[423430745,1780111838000,-1044.86,0.00014888,2]
[423430747,1780111838000,-1044.86,0.00014888,2]
[423430741,1780111838000,-500.0,0.00014888,2]
[423430695,1780111838000,-500.0,0.00014888,2]
[423430746,1780111838000,-1044.86,0.00014888,2]
[423430748,1780111838000,-1044.86,0.00014888,2]
[423430750,1780111838000,-1044.86,0.00014888,2]
[423430752,1780111838000,-500.0,0.00014888,2]
[423430753,1780111838000,-500.0,0.00014888,2]
[423430717,1780111838000,-500.0,0.00014888,2]
[423430721,1780111838000,-500.0,0.00014888,2]
[423430725,1780111838000,-500.0,0.00014888,2]
[423430719,1780111838000,-500.0,0.00014888,2]
[423430697,1780111838000,-669.65,0.00014888,2]
[423430699,1780111838000,-669.65,0.00014888,2]
[423430700,1780111838000,-669.65,0.00014888,2]
[423430720,1780111838000,-500.0,0.00014888,2]
[423430702,1780111838000,-669.65,0.00014888,2]
[423430701,1780111838000,-669.65,0.00014888,2]
[423430704,1780111838000,-216.95,0.00014888,2]
[423430715,1780111838000,-500.0,0.00014888,2]
[423430714,1780111838000,-500.0,0.00014888,2]
[423430709,1780111838000,-160.92867314,0.00014888,2]
[423430706,1780111838000,-500.0,0.00014888,2]
[423430698,1780111838000,-669.65,0.00014888,2]
[423430713,1780111838000,-500.0,0.00014888,2]
[423430703,1780111838000,-500.0,0.00014888,2]
[423430712,1780111838000,-500.0,0.00014888,2]
[423430707,1780111838000,-500.0,0.00014888,2]
[423430710,1780111838000,-500.0,0.00014888,2]
[423430716,1780111838000,-500.0,0.00014888,2]
[423430718,1780111838000,-500.0,0.00014888,2]
[423430711,1780111838000,-500.0,0.00014888,2]
[423430705,1780111838000,-500.0,0.00014888,2]
[423430708,1780111838000,-500.0,0.00014888,2]
[423430781,1780111839000,-500.0,0.00014999,2]
[423430777,1780111839000,-246.41293601,0.00014986,2]
[423430775,1780111839000,-158.45266546,0.00014986,2]
[423430773,1780111839000,-217.54708937,0.00014986,2]
[423430772,1780111839000,-277.43,0.00014985,2]
[423430780,1780111839000,-500.0,0.00014999,2]
[423430782,1780111839000,-500.0,0.00014999,2]
[423430789,1780111839000,-3557.79982436,0.00014999,2]
[423430783,1780111839000,-500.0,0.00014999,2]
[423430785,1780111839000,-500.0,0.00014999,2]
[423430790,1780111839000,-669.65,0.00014999,2]
[423430786,1780111839000,-500.0,0.00014999,2]
[423430787,1780111839000,-500.0,0.00014999,2]
[423430788,1780111839000,-348.48,0.00014999,2]
[423430774,1780111839000,-232.60106033,0.00014986,2]
[423430784,1780111839000,-500.0,0.00014999,2]
[423430776,1780111839000,-273.46900396,0.00014986,2]
[423430791,1780111839000,-669.65,0.00014999,2]
[423430771,1780111839000,-427.43,0.00014985,2]
[423430762,1780111839000,-1500000.0,0.00014889,2]
[423430766,1780111839000,-150.0,0.00014905,2]
[423430764,1780111839000,-183.94323008,0.000149,2]
[423430763,1780111839000,-10000.0,0.00014899,2]
[423430765,1780111839000,-180.06599389,0.000149,2]
[423430757,1780111839000,-500.0,0.00014888,2]
[423430755,1780111839000,-500.0,0.00014888,2]
[423430756,1780111839000,-500.0,0.00014888,2]
[423430758,1780111839000,-500.0,0.00014888,2]
[423430760,1780111839000,-500.0,0.00014888,2]
[423430759,1780111839000,-500.0,0.00014888,2]
[423430761,1780111839000,-400.0,0.00014889,2]
[423430768,1780111839000,-400.0,0.00014925,2]
[423430767,1780111839000,-400.0,0.00014925,2]
[423430769,1780111839000,-150.0,0.00014946,2]
[423430779,1780111839000,-500.0,0.00014999,2]
[423430778,1780111839000,-500.0,0.00014999,2]
[423430770,1780111839000,-252.44,0.00014985,2]
[423430792,1780111839000,-669.65,0.00014999,2]
[423430805,1780111839000,-669.65,0.00014999,2]
[423430802,1780111839000,-669.65,0.00014999,2]
[423430820,1780111839000,-1044.86,0.00014999,2]
[423430816,1780111839000,-1044.86,0.00014999,2]
[423430819,1780111839000,-1044.86,0.00014999,2]
[423430828,1780111839000,-307.16575562,0.00014999,2]
[423430827,1780111839000,-300.0,0.00014999,2]
[423430817,1780111839000,-1044.86,0.00014999,2]
[423430818,1780111839000,-1044.86,0.00014999,2]
[423430815,1780111839000,-1044.86,0.00014999,2]
[423430826,1780111839000,-411.21,0.00014999,2]
[423430822,1780111839000,-1044.86,0.00014999,2]
[423430825,1780111839000,-500.0,0.00014999,2]
[423430823,1780111839000,-1045.09525507,0.00014999,2]
[423430824,1780111839000,-500.0,0.00014999,2]
[423430830,1780111839000,-300.0,0.00014999,2]
[423430829,1780111839000,-300.0,0.00014999,2]
[423430831,1780111839000,-4998375.52842219,0.00015,2]
[423430821,1780111839000,-1044.86,0.00014999,2]
[423430794,1780111839000,-669.65,0.00014999,2]
[423430814,1780111839000,-1044.86,0.00014999,2]
[423430812,1780111839000,-1044.86,0.00014999,2]
[423430793,1780111839000,-669.65,0.00014999,2]
[423430801,1780111839000,-669.65,0.00014999,2]
[423430798,1780111839000,-669.65,0.00014999,2]
[423430795,1780111839000,-669.65,0.00014999,2]
[423430799,1780111839000,-669.65,0.00014999,2]
[423430800,1780111839000,-669.65,0.00014999,2]
[423430796,1780111839000,-669.65,0.00014999,2]
[423430813,1780111839000,-1044.86,0.00014999,2]
[423430797,1780111839000,-669.65,0.00014999,2]
[423430807,1780111839000,-1044.86,0.00014999,2]
[423430803,1780111839000,-669.65,0.00014999,2]
[423430809,1780111839000,-1044.86,0.00014999,2]
[423430811,1780111839000,-1044.86,0.00014999,2]
[423430808,1780111839000,-1044.86,0.00014999,2]
[423430806,1780111839000,-669.79100248,0.00014999,2]
[423430810,1780111839000,-1044.86,0.00014999,2]
[423430804,1780111839000,-669.65,0.00014999,2]
[423430832,1780111840000,-806.41097753,0.00015,2]
[423430833,1780111840000,-6275.55825757,0.00015,2]
[423430836,1780111840000,-931.72314672,0.00015,2]
[423430834,1780111840000,-2774.49316287,0.00015,2]
[423430835,1780111840000,-4814.93020219,0.00015,2]
[423430851,1780111843000,-159.08038622,0.0001481,2]
[423430853,1780111843000,-318.46,0.000149,3]
[423430852,1780111843000,-368.73880328,0.000149,3]
[423430878,1780111846000,-24312.80119672,0.000149,3]
[423430877,1780111846000,-647.8903672,0.00014655,2]
[423430879,1780111846000,-4996.27454949,0.00015,2]
[423430876,1780111846000,-280.1096328,0.00014655,2]
[423430886,1780111925000,-309.5898379,0.00011126,2]
[423430888,1780111927000,275.74,0.00027431,120]
[423430887,1780111927000,-309.5898379,0.00013325,2]
[423430889,1780111959000,-931.72314672,0.00013325,2]
[423430890,1780111983000,-931.72314672,0.00013325,2]
[423430892,1780112025000,-500.0,0.00013425,2]
[423430893,1780112025000,-487.66538069,0.00013425,2]
[423430891,1780112025000,-500.0,0.00013425,2]
[423430894,1780112027000,-12.33461931,0.00013425,2]
[423430895,1780112027000,-500.0,0.00013425,2]
[423430897,1780112027000,-475.33076138,0.00013425,2]
[423430896,1780112027000,-500.0,0.00013425,2]
[423430898,1780112234000,4400.0,0.00028082,120]
[423430902,1780112566000,-247.32,0.000107,2]
[423430903,1780112589000,-1031.335992,0.00012922,2]
[423430904,1780112624000,2666.575,0.0002808,120]
[423430906,1780112927000,-222.58,0.000109,2]
[423430907,1780112940000,1000.0,0.00028081,120]
[423430919,1780112948000,-209.12966642,0.00012908,2]
[423430917,1780112948000,-190.72823364,0.00012904,2]
[423430915,1780112948000,-500.0,0.00012904,2]
[423430916,1780112948000,-546.95804973,0.00012904,2]
[423430918,1780112948000,-2000.0,0.00012906,2]
[423430914,1780112948000,-500.0,0.00012904,2]
[423430923,1780112948000,-659.07,0.00013,2]
[423430913,1780112948000,-500.0,0.00012904,2]
[423430910,1780112948000,-500.0,0.00012904,2]
[423430911,1780112948000,-500.0,0.00012904,2]
[423430908,1780112948000,-1487.66538069,0.00012805,2]
[423430909,1780112948000,-166.80940633,0.00012904,2]
[423430912,1780112948000,-500.0,0.00012904,2]
[423430920,1780112948000,-178.19638643,0.00012999,2]
[423430934,1780112948000,-150.0,0.00013488,2]
[423430922,1780112948000,-1133.78,0.00013,2]
[423430921,1780112948000,-1313.56,0.00013,2]
[423430935,1780112948000,-150.0,0.00013488,2]
[423430936,1780112948000,-23516.97541676,0.00013499,2]
[423430932,1780112948000,-150.0,0.00013488,2]
[423430933,1780112948000,-150.0,0.00013488,2]
[423430931,1780112948000,-150.0,0.00013488,2]
[423430930,1780112948000,-150.0,0.00013488,2]
[423430928,1780112948000,-163.56,0.00013437,2]
[423430929,1780112948000,-162.47,0.00013437,2]
[423430924,1780112948000,-2499.17,0.00013,2]
[423430926,1780112948000,-631.45,0.00013281,2]
[423430925,1780112948000,-1600.0,0.00013092,2]
[423430927,1780112948000,-189.47,0.00013425,2]
[423430938,1780113032000,-200.33,0.000109,2]
[423430939,1780113032000,-425.0,0.00013398,2]
[423430941,1780113032000,-32005.42703711,0.00013399,2]
[423430940,1780113032000,-291369.55178604,0.00013399,2]
[423430943,1780113032000,-47764.08612677,0.00013399,2]
[423430942,1780113032000,-185028.78651207,0.00013399,2]
[423430945,1780113032000,-399.99999999,0.00013399,2]
[423430946,1780113032000,-1000.5,0.00013399,2]
[423430944,1780113032000,-1843.35625,0.00013399,2]
[423430947,1780113033000,-3420.64820335,0.00013399,2]
[423430948,1780113033000,-250.0,0.00013399,2]
[423431188,1780113038000,-500.0,0.00013698,2]
[423431190,1780113038000,-500.0,0.00013698,2]
[423431192,1780113038000,-500.0,0.00013698,2]
[423431191,1780113038000,-500.0,0.00013698,2]
[423431193,1780113038000,-500.0,0.00013698,2]
[423431194,1780113038000,-556.82,0.00013698,2]
[423431195,1780113038000,-556.82,0.00013698,2]
[423431197,1780113038000,-511.01,0.00013698,2]
[423431186,1780113038000,-500.0,0.00013698,2]
[423431199,1780113038000,-500.0,0.00013698,2]
[423431201,1780113038000,-500.0,0.00013698,2]
[423431202,1780113038000,-500.0,0.00013698,2]
[423431198,1780113038000,-500.0,0.00013698,2]
[423431196,1780113038000,-511.01,0.00013698,2]
[423431187,1780113038000,-169.79100248,0.00013698,2]
[423431176,1780113038000,-283.147,0.00013499,2]
[423431184,1780113038000,-150.0,0.00013624,2]
[423431200,1780113038000,-500.0,0.00013698,2]
[423431182,1780113038000,-2000.0,0.00013599,2]
[423431185,1780113038000,-150.0,0.00013659,2]
[423431183,1780113038000,-150.0,0.00013616,2]
[423431181,1780113038000,-150.0,0.00013573,2]
[423431178,1780113038000,-165.44360167,0.00013499,2]
[423431180,1780113038000,-150.0,0.0001353,2]
[423431179,1780113038000,-154.61916634,0.00013499,2]
[423431177,1780113038000,-174.1562216,0.00013499,2]
[423431175,1780113038000,-3810.621,0.00013499,2]
[423431172,1780113038000,-936917.64408467,0.00013399,2]
[423431174,1780113038000,-2500.0,0.00013499,2]
[423431173,1780113038000,-48684.00588324,0.00013499,2]
[423431189,1780113038000,-500.0,0.00013698,2]
[423431204,1780113038000,-1372.36,0.00013698,2]
[423431234,1780113038000,-150.0,0.00013959,2]
[423431205,1780113038000,-1372.36,0.00013698,2]
[423431203,1780113038000,-500.0,0.00013698,2]
[423431244,1780113038000,-300.0,0.00014086,2]
[423431241,1780113038000,-150.0,0.00014033,2]
[423431242,1780113038000,-150.0,0.00014044,2]
[423431239,1780113038000,-250.0,0.00014,2]
[423431240,1780113038000,-150.0,0.00014001,2]
[423431236,1780113038000,-166.66,0.00013973,2]
[423431238,1780113038000,-20101.69531695,0.0001399,2]
[423431237,1780113038000,-150.0,0.00013987,2]
[423431227,1780113038000,-150.0,0.00013916,2]
[423431225,1780113038000,-150.0,0.00013896,2]
[423431223,1780113038000,-150.0,0.00013873,2]
[423431222,1780113038000,-165.44360167,0.00013849,2]
[423431219,1780113038000,-150.0,0.0001383,2]
[423431232,1780113038000,-160.77,0.00013939,2]
[423431243,1780113038000,-300.0,0.00014086,2]
[423431220,1780113038000,-166.66,0.00013836,2]
[423431230,1780113038000,-150.0,0.00013916,2]
[423431207,1780113038000,-500.0,0.00013698,2]
[423431208,1780113038000,-2500.0,0.00013699,2]
[423431209,1780113038000,-200.0,0.00013699,2]
[423431211,1780113038000,-156.2014279,0.00013699,2]
[423431213,1780113038000,-150.0,0.00013702,2]
[423431206,1780113038000,-500.0,0.00013698,2]
[423431212,1780113038000,-150.0,0.00013702,2]
[423431214,1780113038000,-150.0,0.00013737,2]
[423431215,1780113038000,-150.0,0.00013745,2]
[423431217,1780113038000,-150.0,0.00013787,2]
[423431216,1780113038000,-150.0,0.0001376,2]
[423431210,1780113038000,-166.66,0.00013699,2]
[423431218,1780113038000,-1000.0,0.00013822,2]
[423431323,1780113039000,-150.0,0.00014441,2]
[423431318,1780113039000,-500.0,0.00014389,2]
[423431320,1780113039000,-150.0,0.0001443,2]
[423431310,1780113039000,-150.0,0.00014344,2]
[423431307,1780113039000,-150.0,0.00014305,2]
[423431312,1780113039000,-150.0,0.00014344,2]
[423431314,1780113039000,-166.66,0.00014384,2]
[423431303,1780113039000,-733.64,0.00014283,2]
[423431337,1780113039000,-500.0,0.00014488,2]
[423431305,1780113039000,-150.0,0.00014301,2]
[423431316,1780113039000,-150.0,0.00014387,2]
[423431325,1780113039000,-2000.0,0.00014454,2]
[423431348,1780113039000,-500.0,0.00014488,2]
[423431327,1780113039000,-637.53,0.00014454,2]
[423431329,1780113039000,-150.0,0.00014472,2]
[423431339,1780113039000,-587.08663914,0.00014488,2]
[423431331,1780113039000,-150.0,0.00014487,2]
[423431333,1780113039000,-500.0,0.00014487,2]
[423431346,1780113039000,-500.0,0.00014488,2]
[423431344,1780113039000,-500.0,0.00014488,2]
[423431352,1780113039000,-1098.97,0.000145,2]
[423431354,1780113039000,-150.0,0.00014515,2]
[423431350,1780113039000,-500.0,0.00014488,2]
[423431363,1780113039000,-150.0,0.00014558,2]
[423431301,1780113039000,-150.0,0.00014258,2]
[423431335,1780113039000,-500.0,0.00014488,2]
[423431298,1780113039000,-412.12101097,0.00014251,2]
[423431262,1780113039000,-600.0,0.00014194,2]
[423431294,1780113039000,-500.0,0.00014251,2]
[423431246,1780113039000,-300.0,0.00014086,2]
[423431245,1780113039000,-300.0,0.00014086,2]
[423431247,1780113039000,-300.0,0.00014086,2]
[423431251,1780113039000,-275.74,0.00014116,2]
[423431249,1780113039000,-166.66,0.0001411,2]
[423431248,1780113039000,-150.0,0.00014087,2]
[423431256,1780113039000,-150.0,0.0001413,2]
[423431253,1780113039000,-150.0,0.0001413,2]
[423431258,1780113039000,-150.0,0.00014169,2]
[423431264,1780113039000,-600.0,0.00014194,2]
[423431260,1780113039000,-150.0,0.00014173,2]
[423431357,1780113039000,-2000.0,0.00014519,2]
[423431268,1780113039000,-174.1562216,0.000142,2]
[423431266,1780113039000,-150.0,0.00014196,2]
[423431270,1780113039000,-165.44360167,0.000142,2]
[423431272,1780113039000,-150.0,0.00014216,2]
[423431274,1780113039000,-150.0,0.00014237,2]
[423431288,1780113039000,-150.0,0.00014251,2]
[423431276,1780113039000,-150.0,0.00014237,2]
[423431292,1780113039000,-500.0,0.00014251,2]
[423431290,1780113039000,-500.0,0.00014251,2]
[423431279,1780113039000,-166.66,0.00014247,2]
[423431281,1780113039000,-500.0,0.00014251,2]
[423431286,1780113039000,-158.79341703,0.00014251,2]
[423431284,1780113039000,-500.0,0.00014251,2]
[423431297,1780113039000,-500.0,0.00014251,2]
[423431365,1780113039000,-150.0,0.00014578,2]
[423431342,1780113039000,-500.0,0.00014488,2]
[423431359,1780113039000,-165.44360167,0.0001455,2]
[423431434,1780113039000,-150.0,0.00014858,2]
[423431436,1780113039000,-500.0,0.00014882,2]
[423431432,1780113039000,-150.0,0.0001485,2]
[423431438,1780113039000,-556.82,0.00014882,2]
[423431440,1780113039000,-511.01,0.00014882,2]
[423431424,1780113039000,-2500.0,0.00014849,2]
[423431443,1780113039000,-500.0,0.00014882,2]
[423431445,1780113039000,-500.0,0.00014882,2]
[423431447,1780113039000,-25000.0,0.00014882,3]
[423431449,1780113039000,-345932.9900804,0.00014883,2]
[423431460,1780113039000,-500.0,0.00014884,2]
[423431463,1780113039000,-512.54439461,0.00014884,2]
[423431430,1780113039000,-2500.0,0.00014849,2]
[423431464,1780113039000,-500.0,0.00014884,2]
[423431458,1780113039000,-500.0,0.00014884,2]
[423431455,1780113039000,-400.0,0.00014883,2]
[423431453,1780113039000,-2721.6393742,0.00014883,2]
[423431456,1780113039000,-23277.9403453,0.00014883,2]
[423431467,1780113039000,-500.0,0.00014884,2]
[423431471,1780113039000,-556.82,0.00014884,2]
[423431469,1780113039000,-556.82,0.00014884,2]
[423431475,1780113039000,-511.01,0.00014884,2]
[423431478,1780113039000,-500.0,0.00014884,2]